bitfinex-derivatives/quotes_ETHF0:USTF0_20250106
["timestamp","ask_amount","ask_price","bid_price","bid_amount"]
[1736179683725,0.26895,3718.4,3718.2,0.26896]
[1736179683930,0.26894,3718.4,3718.1,0.26896]
[1736179684131,0.26896,3718.2,3718.0,0.26897]
[1736179684435,2.63700993,3718.5,3717.9,3.2078]
[1736179684638,2.63700993,3718.5,3718.2,0.26895]
[1736179684833,0.26895,3718.3,3718.2,0.26895]
[1736179685140,2.63700993,3718.5,3717.9,3.2078]
[1736179685437,0.26895,3718.3,3718.2,0.26895]
[1736179685637,2.63700993,3718.5,3717.9,3.2078]
[1736179685937,3.2078,3718.7,3718.2,0.26895]
[1736179686126,3.2078,3718.7,3717.9,3.2078]
[1736179686331,3.2078,3718.7,3718.3,0.26894]
[1736179686533,3.2078,3718.7,3717.9,3.2078]
[1736179686735,4.21540665,3719.3,3719.2,0.26888]
[1736179686936,2.10278284,3718.9,3718.8,3.47671]
[1736179687433,2.10278284,3718.9,3718.8,44.27671]
[1736179688136,0.26887,3719.3,3719.2,0.26887]
[1736179688629,2.63700993,3719.4,3718.8,44.0078]
[1736179688837,0.2689,3719.0,3718.9,0.26889]
[1736179689437,4.3506,3719.2,3718.8,3.2078]
[1736179689740,0.26889,3718.9,3718.8,3.2078]
[1736179692235,0.26895,3718.1,3717.5,0.67247]
[1736179692430,2.63700993,3717.9,3717.4,2.85179]
[1736179692632,2.63700993,3717.9,3717.8,0.26897]
[1736179692834,0.26895,3718.1,3717.6,40.8]
[1736179693139,3.2078,3717.8,3717.6,40.8]
[1736179693338,3.2078,3717.8,3717.7,0.26897]
[1736179695038,0.26895,3718.0,3717.9,0.26896]
[1736179695635,0.26895,3718.0,3717.6,40.8]
[1736179695636,0.26897,3717.7,3717.6,0.26898]
[1736179695838,3.2078,3717.8,3717.3,5.4367]
[1736179696139,0.26898,3717.7,3717.6,0.26898]
[1736179696335,0.26899,3717.5,3717.4,41.06899]
[1736179696538,3.2078,3717.8,3717.4,40.8]
[1736179696732,0.26898,3717.6,3717.5,0.26898]
[1736179697437,3.2078,3717.8,3717.4,40.8]
[1736179697630,3.2078,3717.8,3717.3,5.4367]
[1736179697631,2.63700993,3717.5,3717.0,0.26902]
[1736179697850,2.63700993,3717.1,3716.5,2.1848]
[1736179698143,2.90602993,3717.1,3717.0,0.26902]
[1736179698339,3.2078,3717.2,3717.1,0.26902]
[1736179698843,5.5307,3717.6,3716.7,3.88042]
[1736179699036,0.26899,3717.5,3717.4,0.26899]
[1736179699342,5.5307,3717.6,3716.7,3.2078]
[1736179699543,5.5307,3717.6,3717.5,0.26899]
[1736179699839,5.79968,3717.6,3717.5,0.26899]
[1736179700839,2.59188,3717.6,3717.4,0.26899]
[1736179701143,2.59188,3717.6,3717.5,0.26899]
[1736179701337,4.73979277,3717.9,3716.7,3.2078]
[1736179701538,4.73979277,3717.9,3717.8,0.26897]
[1736179701741,4.73979277,3717.9,3717.1,0.67254]
[1736179701937,0.26897,3717.8,3717.6,0.26898]
[1736179702133,0.26897,3717.7,3717.6,0.26898]
[1736179702441,4.73979277,3717.9,3716.8,0.6726]
[1736179702640,0.26899,3717.6,3717.3,0.269]
[1736179702842,4.73979277,3717.9,3716.8,0.6726]
[1736179703144,2.11726256,3717.6,3716.8,0.6726]
[1736179703348,2.11726256,3717.6,3716.7,3.2078]
[1736179703536,2.11726256,3717.3,3717.2,0.26901]
[1736179703741,3.47679,3717.6,3717.5,0.26899]
[1736179703946,5.32506256,3717.6,3716.8,0.6726]
[1736179704140,5.32506256,3717.6,3716.7,3.2078]
[1736179704440,2.10278284,3717.9,3717.8,0.26897]
[1736179704641,2.10278284,3717.9,3717.8,3.47677]
[1736179704947,2.10278284,3717.9,3717.8,44.27677]
[1736179705341,2.10278284,3717.9,3717.8,3.47677]
[1736179706048,0.26895,3718.1,3717.8,3.47677]
[1736179706049,2.11726256,3718.1,3718.0,0.26895]
[1736179706641,2.38620256,3718.1,3718.0,0.26895]
[1736179706847,2.11726256,3718.4,3718.3,0.26893]
[1736179707347,2.10278284,3718.7,3718.6,0.26891]
[1736179708244,2.11726256,3718.9,3718.4,4.4827]
[1736179708442,2.38615256,3718.9,3718.8,0.26889]
[1736179708951,2.2904,3719.0,3718.4,4.4827]
[1736179709145,2.2904,3719.0,3718.9,0.26889]
[1736179709547,2.2904,3719.0,3718.4,4.4827]
[1736179709746,2.2904,3719.0,3718.9,0.26889]
[1736179710844,2.2904,3719.0,3718.4,4.4827]
[1736179710845,2.38613256,3719.2,3718.4,5.15501]
[1736179711043,2.11726256,3719.2,3719.1,0.26887]
[1736179711947,2.38613256,3719.2,3719.1,0.26887]
[1736179712450,2.11726256,3719.2,3719.1,0.26887]
[1736179712946,3.2078,3719.3,3719.2,0.26887]
[1736179713553,2.10278284,3719.5,3719.4,0.26885]
[1736179714056,2.11726256,3719.8,3719.2,4.4016]
[1736179714353,5.31058284,3719.9,3719.8,0.26882]
[1736179714551,2.10278284,3719.9,3719.8,0.26882]
[1736179715841,4.2200454,3720.7,3719.6,1.214]
[1736179716047,3.15711904,3720.9,3720.8,0.26875]
[1736179716655,4.21540665,3721.2,3720.8,40.8]
[1736179716656,3.60718665,3721.2,3720.8,40.8]
[1736179716850,3.01168105,3721.2,3720.8,40.8]
[1736179717350,3.01168105,3721.2,3721.1,0.26873]
[1736179717860,2.11726256,3721.6,3721.1,0.26873]
[1736179718051,2.11726256,3721.6,3720.9,2.1665]
[1736179718354,2.11726256,3721.3,3721.0,0.26873]
[1736179718654,2.11726256,3721.3,3720.9,2.1665]
[1736179718855,2.11726256,3721.0,3720.7,3.2078]
[1736179719158,0.26875,3720.8,3720.7,3.2078]
[1736179720653,2.2969,3721.2,3720.7,3.2078]
[1736179720857,2.56562,3721.2,3720.7,3.2078]
[1736179721157,5.492,3721.7,3720.7,3.47656]
[1736179721456,0.26872,3721.3,3720.7,3.2078]
[1736179721660,0.26873,3721.2,3720.7,5.4507]
[1736179722765,2.3282,3721.6,3721.1,3.2078]
[1736179723653,0.26872,3721.3,3721.1,3.2078]
[1736179723847,2.3282,3721.6,3721.1,3.2078]
[1736179724053,0.26872,3721.2,3721.1,3.2078]
[1736179724453,0.26872,3721.2,3721.1,44.0078]
[1736179725554,2.3282,3721.6,3721.1,44.0078]
[1736179725755,0.26872,3721.2,3721.1,44.0078]
[1736179726562,0.26872,3721.2,3721.1,3.2078]
[1736179726957,0.26872,3721.2,3721.1,44.0078]
[1736179727458,5.84395592,3721.3,3720.2,3.2078]
[1736179727656,0.26879,3720.3,3720.2,3.2078]
[1736179727861,0.26879,3720.3,3720.2,44.0078]
[1736179728457,5.84395592,3720.5,3719.4,3.2078]
[1736179728762,5.84395592,3720.5,3718.4,8.33590092]
[1736179728763,0.26887,3719.2,3719.0,0.26888]
[1736179729059,0.26887,3719.2,3719.1,40.8]
[1736179729658,3.87989,3719.7,3719.1,40.8]
[1736179729962,3.2078,3719.7,3719.1,40.8]
[1736179730362,0.26883,3719.8,3719.3,3.2078]
[1736179730557,0.26883,3719.7,3719.5,0.26884]
[1736179730864,0.26884,3719.6,3719.4,0.26885]
[1736179731065,3.2078,3720.1,3719.3,3.2078]
[1736179731262,0.26885,3719.4,3719.3,3.2078]
[1736179731957,0.26885,3719.4,3719.3,3.47666]
[1736179732360,0.26885,3719.4,3719.3,3.2078]
[1736179732859,0.26885,3719.4,3719.3,3.47666]
[1736179733168,0.26885,3719.4,3719.3,3.2078]
[1736179733464,0.26885,3719.4,3719.3,3.47666]
[1736179733766,0.67203,3720.0,3719.3,3.47666]
[1736179733767,0.26885,3719.5,3719.4,0.26885]
[1736179734064,3.2078,3720.1,3719.3,3.2078]
[1736179734456,0.26879,3720.3,3719.9,0.26881]
[1736179734658,2.1707,3720.4,3719.4,0.67214]
[1736179734966,2.1707,3720.4,3720.3,0.26879]
[1736179735265,2.43948,3720.4,3720.3,0.26879]
[1736179735466,0.26879,3720.3,3720.2,0.26879]
[1736179735664,0.26879,3720.3,3720.2,40.8]
[1736179735962,0.26876,3720.7,3720.6,0.26876]
[1736179736264,0.26877,3720.6,3720.5,0.26877]
[1736179736658,0.26877,3720.5,3720.4,0.26878]
[1736179737069,0.26877,3720.6,3720.5,0.26877]
[1736179737561,0.26871,3721.4,3720.6,0.94069]
[1736179737767,2.1219,3721.5,3720.9,3.2078]
[1736179737961,0.26871,3721.4,3721.3,0.26871]
[1736179738160,2.1219,3721.5,3720.9,3.2078]
[1736179738357,2.39061,3721.5,3721.4,0.26871]
[1736179738665,2.39061,3721.5,3720.9,3.2078]
[1736179738666,0.26872,3721.3,3721.0,0.26874]
[1736179738962,0.26872,3721.4,3721.3,0.26872]
[1736179739157,2.1219,3721.5,3720.9,3.2078]
[1736179739358,0.26872,3721.4,3721.3,0.26872]
[1736179739965,0.26873,3721.3,3721.2,0.26873]
[1736179740162,0.26872,3721.4,3721.3,0.26872]
[1736179740566,2.1219,3721.5,3720.9,3.2078]
[1736179740962,0.26874,3721.0,3720.9,0.26874]
[1736179741162,0.26873,3721.1,3721.0,0.26873]
[1736179741368,2.1219,3721.5,3720.5,7.05795592]
[1736179741559,2.1219,3721.5,3721.3,0.26871]
[1736179741560,0.26871,3721.4,3721.3,0.26871]
[1736179741763,3.2078,3721.7,3721.2,0.26872]
[1736179741966,0.26871,3721.3,3720.7,0.6719]
[1736179742260,0.26871,3721.4,3721.3,0.26871]
[1736179743361,0.26871,3721.4,3720.5,6.51588592]
[1736179743362,3.47649,3721.7,3721.6,0.26869]
[1736179743961,0.26869,3721.6,3721.5,0.26869]
[1736179744369,0.26869,3721.6,3721.5,41.06869]
[1736179744670,0.26869,3721.6,3721.5,0.26869]
[1736179745765,3.47649,3721.7,3721.6,0.26869]
[1736179746467,3.2078,3721.7,3721.6,0.26869]
[1736179748972,3.2078,3721.7,3721.6,2.38034861]
[1736179749470,2.48086,3722.2,3722.1,0.26867]
[1736179750070,3.2078,3722.3,3721.8,0.67172]
[1736179750277,3.47646,3722.3,3722.2,0.26866]
[1736179750868,3.2078,3722.3,3722.2,0.26866]
[1736179751071,3.47645,3722.3,3722.2,0.26866]
[1736179751269,0.26867,3722.1,3722.0,0.26867]
[1736179751471,0.26868,3721.9,3721.8,0.26868]
[1736179751669,3.2078,3722.3,3721.6,2.11165861]
[1736179751876,0.26865,3722.2,3722.1,0.26865]
[1736179752471,3.47645,3722.3,3722.2,0.26865]
[1736179752772,3.2078,3722.3,3722.2,0.26865]
[1736179752978,3.2078,3722.3,3721.8,2.1258]
[1736179753170,0.26866,3722.1,3722.0,0.26866]
[1736179754178,0.26867,3722.0,3721.9,0.26867]
[1736179754377,0.26866,3722.1,3722.0,0.26866]
[1736179755274,0.26865,3722.2,3722.1,0.26865]
[1736179755873,0.26867,3722.1,3722.0,0.26866]
[1736179756480,3.47645,3722.3,3722.2,0.26865]
[1736179756673,0.26866,3722.2,3722.1,0.26865]
[1736179757478,0.26868,3722.0,3721.9,0.26866]
[1736179757781,0.26869,3721.7,3721.6,0.26868]
[1736179757980,0.26868,3721.9,3721.8,0.26867]
[1736179758370,3.2078,3722.3,3721.7,0.26867]
[1736179758574,0.26868,3721.8,3721.7,0.26867]
[1736179758979,0.26867,3721.9,3721.8,0.26867]
[1736179759385,0.26867,3722.0,3721.9,0.26866]
[1736179759581,3.2078,3722.3,3721.5,2.11165861]
[1736179759984,0.26865,3722.2,3722.1,0.26865]
[1736179760288,0.26865,3722.2,3721.7,0.67172]
[1736179760289,3.2078,3722.3,3721.7,0.67172]
[1736179760481,3.47645,3722.3,3722.2,0.26865]
[1736179761794,2.43883,3722.6,3722.5,0.26864]
[1736179762184,2.1702,3722.6,3722.5,0.26864]
[1736179762489,2.2581,3722.9,3722.8,0.26861]
[1736179762688,2.2581,3722.9,3722.6,0.26862]
[1736179762990,3.47642,3722.7,3722.6,0.26862]
[1736179763192,4.18799525,3723.8,3722.6,10.31945861]
[1736179763382,4.45653525,3723.8,3723.4,3.2078]
[1736179763588,0.26857,3723.4,3723.0,0.26859]
[1736179763791,0.26856,3723.4,3723.0,0.26859]
[1736179763988,6.3895,3723.7,3723.1,0.26858]
[1736179764194,6.3895,3723.7,3722.9,3.2078]
[1736179764387,0.26856,3723.4,3723.2,0.26857]
[1736179764587,4.2586,3723.7,3723.2,0.26857]
[1736179764788,4.52714,3723.7,3723.5,0.26855]
[1736179765082,3.2078,3723.9,3723.4,2.11165861]
[1736179765286,3.2078,3723.9,3723.8,0.26853]
[1736179765592,0.2685,3724.2,3724.0,0.26851]
[1736179766191,0.26851,3724.1,3723.9,0.26852]
[1736179766391,0.2685,3724.2,3724.0,0.26852]
[1736179766593,4.92982,3724.5,3723.7,5.31945861]
[1736179766893,0.26853,3723.8,3723.7,3.2078]
[1736179767197,0.26856,3723.4,3723.3,3.2078]
[1736179767489,0.26859,3723.0,3722.9,3.2078]
[1736179767887,0.48339,3723.0,3722.9,3.2078]
[1736179769299,0.48339,3723.0,3722.9,44.0078]
[1736179769495,0.2148,3723.0,3722.9,44.0078]
[1736179769698,0.48339,3723.0,3722.9,44.0078]
[1736179769994,0.2148,3723.1,3722.9,44.2764]
[1736179770397,0.26859,3723.0,3722.9,44.2764]
[1736179770597,0.48339,3723.1,3723.0,0.26859]
[1736179771001,1.5431,3723.1,3723.0,0.26859]
[1736179771198,1.7579,3723.1,3723.0,0.26859]
[1736179776792,5.84013724,3724.9,3723.0,5.0]
[1736179776999,0.2685,3724.2,3724.1,3.4763]
[1736179777190,0.2685,3724.3,3724.2,0.26849]
[1736179777704,0.26846,3724.8,3724.3,0.26849]
[1736179777895,0.2147,3724.5,3724.3,0.26849]
[1736179778097,0.3694,3724.4,3724.3,0.26849]
[1736179778898,0.3721,3724.4,3724.3,0.26849]
[1736179779602,1.2886,3724.5,3724.4,0.26848]
[1736179780203,3.2078,3725.7,3724.4,6.21]
[1736179780502,3.2078,3725.8,3724.9,3.2078]
[1736179780805,0.26844,3725.0,3724.9,3.47625]
[1736179781003,0.26844,3725.0,3724.9,0.26845]
[1736179781205,4.4182,3725.2,3724.6,40.8]
[1736179781396,0.65177,3725.1,3724.6,41.47118]
[1736179781596,0.65177,3725.1,3724.6,40.8]
[1736179781802,2.1236,3725.0,3724.9,0.26845]
[1736179783607,0.65177,3725.1,3725.0,0.26844]
[1736179785307,0.65177,3725.1,3724.6,1.21]
[1736179785505,0.92021,3725.1,3725.0,0.26844]
[1736179786309,0.65177,3725.1,3724.5,4.4178]
[1736179786505,0.65177,3725.1,3724.5,3.2078]
[1736179786708,0.26847,3724.6,3724.5,3.2078]
[1736179787017,0.26846,3724.8,3724.7,0.26846]
[1736179787313,0.26845,3725.0,3724.9,0.26844]
[1736179788008,0.65177,3725.1,3725.0,0.26844]
[1736179788510,0.9202,3725.1,3725.0,0.26844]
[1736179789007,0.65177,3725.1,3725.0,0.26844]
[1736179789605,0.65177,3725.1,3725.0,41.06844]
[1736179792808,0.65177,3725.1,3725.0,0.26844]
[1736179793113,0.65661458,3725.1,3725.0,0.26844]
[1736179793312,0.65661458,3725.1,3725.0,41.06844]
[1736179796313,2.993,3727.7,3725.0,45.8153]
[1736179796516,0.6701,3730.7,3727.6,0.26825]
[1736179796705,3.2078,3732.0,3730.6,4.21564172]
[1736179796907,3.47574,3732.0,3730.7,2.1162]
[1736179797107,3.2078,3732.0,3731.3,3.2078]
[1736179797402,0.26791,3732.5,3731.9,2.10782086]
[1736179797610,0.63616561,3732.8,3732.5,2.10782086]
[1736179797611,0.58607821,3732.8,3732.5,2.10782086]
[1736179798101,0.41397821,3732.8,3732.7,3.2078]
[1736179798305,3.2078,3734.0,3732.9,0.26787]
[1736179798509,0.26777,3734.4,3733.8,2.10782086]
[1736179798703,3.2078,3734.5,3733.8,2.10782086]
[1736179798704,0.41397821,3734.0,3733.8,2.10782086]
[1736179798904,3.7068,3734.9,3733.7,3.2078]
[1736179799109,3.2078,3737.1,3734.8,3.2078]
[1736179799311,2.1909,3737.9,3736.1,3.2078]
[1736179799509,0.00414538,3738.0,3736.9,3.2078]
[1736179799712,2.67223538,3738.5,3737.4,2.87359329]
[1736179799905,1.27288154,3738.8,3738.7,0.26746]
[1736179800111,1.27288154,3738.8,3738.7,0.25176]
[1736179800311,1.27288154,3738.8,3737.5,3.2078]
[1736179800503,1.27288154,3738.8,3738.0,3.2078]
[1736179800910,2.87359329,3738.6,3737.5,3.2078]
[1736179801208,6.97852935,3738.7,3737.4,2.38377592]
[1736179801414,0.26774,3734.9,3733.2,3.2078]
[1736179801605,3.2078,3733.4,3732.5,3.2078]
[1736179801813,3.2078,3733.4,3733.3,0.26785]
[1736179802114,3.2078,3733.9,3732.6,0.14753934]
[1736179802416,3.2078,3733.5,3732.6,0.14753934]
[1736179802713,3.2078,3733.1,3732.6,0.14753934]
[1736179803012,0.4412,3733.0,3731.9,3.2078]
[1736179803215,3.2078,3732.9,3731.8,0.26795]
[1736179803510,3.2078,3732.4,3731.6,0.26797]
[1736179803712,3.2078,3732.9,3731.9,3.2078]
[1736179803907,3.2078,3733.6,3732.7,3.2078]
[1736179804208,3.19781,3733.6,3732.5,2.86717459]
[1736179804511,3.2078,3733.1,3732.3,3.2078]
[1736179804715,3.2078,3733.1,3732.6,0.26789]
[1736179804906,3.2078,3732.7,3731.7,3.2078]
[1736179805107,3.2078,3731.8,3731.1,0.268]
[1736179805303,3.2078,3731.8,3730.9,3.2078]
[1736179805707,3.2078,3732.2,3731.3,3.2078]
[1736179805915,3.2078,3731.8,3731.4,0.26798]
[1736179806113,3.2078,3731.8,3731.0,2.86717459]
[1736179806314,3.2078,3731.4,3730.7,3.51969708]
[1736179806913,3.2078,3731.6,3731.0,2.86717459]
[1736179807120,3.2078,3731.6,3731.4,0.26798]
[1736179807320,3.2078,3732.0,3731.4,0.26797]
[1736179807512,3.2078,3731.9,3731.6,2.86717459]
[1736179808213,3.2078,3732.3,3731.6,2.86717459]
[1736179808412,3.2078,3731.9,3731.6,2.86717459]
[1736179808612,3.2078,3732.1,3731.8,40.8]
[1736179808817,3.2078,3731.9,3731.8,40.8]
[1736179809017,3.47574,3731.9,3730.1,2.86717459]
[1736179809214,3.2078,3730.2,3729.6,2.86717459]
[1736179809717,3.2078,3730.4,3730.1,2.86717459]
[1736179810222,3.2078,3730.4,3730.3,40.8]
[1736179810617,3.2078,3730.8,3730.3,40.8]
[1736179810815,3.2078,3730.4,3730.3,40.8]
[1736179811617,2.7078,3730.4,3730.3,40.8]
[1736179812317,3.2078,3730.8,3730.3,40.8]
[1736179812619,2.2696,3731.8,3731.1,2.86717459]
[1736179812922,0.26797,3731.6,3731.1,6.07497459]
[1736179813124,2.2696,3731.8,3731.1,2.86717459]
[1736179813326,2.2696,3731.8,3731.5,40.8]
[1736179814023,0.26798,3731.6,3731.5,40.8]
[1736179814814,2.2696,3731.8,3731.5,40.8]
[1736179815022,3.47576,3731.9,3731.5,40.8]
[1736179815217,3.2078,3731.9,3731.5,40.8]
[1736179815415,3.2078,3732.3,3731.5,40.8]
[1736179815615,0.26794,3732.1,3732.0,2.8804229]
[1736179815915,0.26798,3731.6,3731.5,43.6804229]
[1736179816318,0.26798,3731.6,3731.5,40.8]
[1736179816525,3.47578,3731.6,3731.5,40.8]
[1736179818625,3.2078,3731.6,3731.0,2.8804229]
[1736179818826,0.26805,3730.6,3730.5,2.8804229]
[1736179819621,0.26805,3730.6,3730.5,43.6804229]
[1736179820423,3.2078,3731.1,3730.5,43.6804229]
[1736179820614,3.2078,3731.1,3731.0,2.8804229]
[1736179820615,3.47581,3731.1,3731.0,2.8804229]
[1736179820814,3.47581,3731.1,3730.5,40.8]
[1736179820815,3.2078,3731.1,3730.5,2.8804229]
[1736179821015,0.26805,3730.6,3730.5,2.8804229]
[1736179821215,0.26805,3730.6,3730.5,40.8]
[1736179822019,0.26806,3730.4,3730.3,1.55e-06]
[1736179822223,1.97606,3730.4,3730.3,1.55e-06]
[1736179822418,9.8564829,3730.4,3730.3,1.55e-06]
[1736179822631,0.6703,3729.7,3728.5,2.8804229]
[1736179822825,3.2078,3730.1,3729.0,2.8804229]
[1736179823028,3.2078,3730.1,3729.2,0.26815]
[1736179823323,3.2078,3730.1,3729.1,40.8]
[1736179823521,0.26812,3729.6,3729.1,40.8]
[1736179823720,3.2078,3730.1,3729.1,40.8]
[1736179824021,0.26809,3730.0,3729.5,3.1485429]
[1736179824219,3.2078,3730.1,3729.5,2.8804229]
[1736179824627,0.26809,3730.0,3729.5,2.8804229]
[1736179824832,0.2681,3729.9,3729.5,2.8804229]
[1736179825026,3.2078,3730.9,3729.7,3.2078]
[1736179825326,0.26807,3730.3,3730.0,2.8804229]
[1736179825527,3.2078,3730.9,3730.0,2.8804229]
[1736179825828,0.26808,3730.2,3730.0,2.8804229]
[1736179826223,3.2078,3730.9,3730.0,2.8804229]
[1736179826424,0.26808,3730.2,3729.7,3.47591]
[1736179826626,3.2078,3730.9,3730.3,0.26806]
[1736179826627,0.26803,3730.8,3730.3,0.26806]
[1736179826823,3.2078,3730.9,3730.1,3.2078]
[1736179827223,3.2078,3732.6,3730.7,3.2078]
[1736179827530,0.26792,3732.5,3731.9,6.0882229]
[1736179827725,0.66966,3733.2,3731.9,6.0882229]
[1736179827932,0.2679,3732.6,3732.5,3.2078]
[1736179828127,3.2078,3733.3,3732.1,3.2078]
[1736179828320,3.2078,3732.9,3732.1,3.2078]
[1736179828530,0.23293,3732.2,3732.1,3.2078]
[1736179829024,3.2078,3733.3,3732.1,44.0078]
[1736179829025,0.26792,3732.4,3732.1,44.0078]
[1736179829222,3.2078,3733.3,3732.1,44.0078]
[1736179829429,0.26792,3732.5,3732.1,41.06794]
[1736179829630,0.2679,3732.6,3732.5,3.2078]
[1736179829931,3.2078,3733.3,3732.5,3.2078]
[1736179830131,0.2679,3732.7,3732.5,3.2078]
[1736179830326,3.2078,3733.3,3732.5,3.2078]
[1736179830522,2.2239,3733.5,3732.5,3.2078]
[1736179830730,0.26791,3732.6,3732.5,3.2078]
[1736179831226,0.2679,3732.8,3732.5,3.2078]
[1736179831425,2.2239,3733.5,3732.5,3.2078]
[1736179832128,0.2679,3732.8,3732.5,3.2078]
[1736179832534,0.26788,3733.0,3732.6,0.26791]
[1736179832725,3.2078,3733.7,3732.9,3.2078]
[1736179832920,0.26786,3733.2,3732.9,3.47568]
[1736179833123,2.79414,3733.9,3732.9,3.2078]
[1736179833430,2.1246,3733.9,3732.9,3.2078]
[1736179833627,0.26788,3733.0,3732.9,3.2078]
[1736179834730,0.26788,3733.0,3732.9,44.0078]
[1736179835933,0.26788,3733.0,3732.9,3.2078]
[1736179837126,0.6697,3733.0,3731.7,3.2078]
[1736179837334,3.2078,3732.9,3731.8,40.8]
[1736179837534,0.2679,3732.7,3732.3,0.26792]
[1736179837745,0.26789,3732.9,3732.6,0.2679]
[1736179837946,0.26791,3732.5,3732.4,2.8804229]
[1736179838152,0.66967,3733.2,3732.4,2.8804229]
[1736179838444,0.26791,3732.5,3732.4,2.8804229]
[1736179838748,3.2078,3733.0,3732.4,3.1483329]
[1736179838942,3.2078,3733.0,3732.4,2.8804229]
[1736179839442,3.2078,3733.0,3732.5,0.26791]
[1736179839653,0.2679,3732.7,3732.5,0.26791]
[1736179839947,0.26789,3732.9,3732.7,0.2679]
[1736179840146,3.2078,3733.4,3732.5,3.2078]
[1736179840748,0.2679,3732.7,3732.5,3.47571]
[1736179840948,3.2078,3733.4,3732.5,3.2078]
[1736179841352,3.2078,3733.4,3732.7,0.26789]
[1736179841552,3.2078,3733.4,3732.5,3.2078]
[1736179841745,3.2078,3733.4,3732.5,3.47571]
[1736179841746,0.2679,3732.7,3732.5,3.47571]
[1736179842254,2.0639401,3733.2,3732.5,3.47571]
[1736179842443,0.26788,3733.0,3732.6,0.2679]
[1736179842642,2.0639401,3733.2,3732.5,3.2078]
[1736179842843,2.0639401,3733.2,3733.0,2.8804229]
[1736179843041,2.3318001,3733.2,3733.0,2.8804229]
[1736179843244,0.26787,3733.1,3733.0,2.8804229]
[1736179843448,0.26787,3733.1,3733.0,43.6804229]
[1736179843749,3.47567,3733.1,3733.0,40.8]
[1736179843951,5.5396101,3733.1,3733.0,40.8]
[1736179845250,0.26788,3732.9,3732.8,0.26789]
[1736179845447,0.40183556,3733.1,3733.0,0.26788]
[1736179846254,0.40183556,3733.1,3733.0,43.9483029]
[1736179847145,5.10991473,3733.7,3733.6,0.26783]
[1736179847350,4.17752971,3734.0,3733.9,0.26781]
[1736179847750,4.17752971,3734.0,3733.9,41.06781]
[1736179848559,0.2678,3734.0,3733.9,40.8]
[1736179848953,0.26783,3733.7,3733.6,3.2078]
[1736179849144,0.26785,3733.5,3733.4,0.26784]
[1736179849346,0.26784,3733.6,3733.5,0.26784]
[1736179849555,3.2078,3733.9,3732.9,3.2078]
[1736179849849,4.5894229,3735.0,3732.6,2.8804229]
[1736179849850,0.2679,3732.7,3732.6,3.1483229]
[1736179850249,0.2679,3732.8,3732.7,0.26789]
[1736179850450,0.2679,3732.8,3732.5,3.2078]
[1736179850451,3.2078,3733.1,3732.5,3.2078]
[1736179851046,0.2679,3732.7,3732.6,0.2679]
[1736179851254,0.26789,3732.8,3732.7,0.26789]
[1736179851451,3.2078,3733.1,3732.1,6.0882229]
[1736179851653,0.26792,3732.5,3732.4,0.26792]
[1736179851853,0.26792,3732.4,3732.3,0.26792]
[1736179852055,2.08924846,3732.9,3732.1,6.0882229]
[1736179852356,0.26791,3732.5,3732.4,0.26791]
[1736179852551,0.26791,3732.6,3732.5,0.2679]
[1736179852752,0.26792,3732.5,3732.4,0.26791]
[1736179853152,0.26792,3732.5,3732.1,6.0882229]
[1736179853153,2.08924846,3732.7,3732.1,6.0882229]
[1736179853655,2.08924846,3732.7,3731.6,2.8804229]
[1736179853861,3.2078,3732.4,3731.6,6.0882229]
[1736179854058,0.26796,3731.9,3731.8,0.26796]
[1736179854361,0.26798,3731.6,3731.4,0.26799]
[1736179854556,0.26795,3731.9,3731.3,0.26799]
[1736179854756,3.2078,3732.0,3731.2,3.2078]
[1736179855054,2.08924846,3731.8,3731.2,3.2078]
[1736179855858,0.26797,3731.7,3731.5,41.06798]
[1736179856261,3.2078,3732.0,3731.5,40.8]
[1736179856262,5.29704846,3732.0,3731.5,40.8]
[1736179856457,0.26798,3731.6,3731.5,40.8]
[1736179856959,5.29704846,3732.0,3731.5,40.8]
[1736179857156,5.29704846,3732.0,3731.9,0.26795]
[1736179857462,0.26795,3732.0,3731.8,0.26796]
[1736179857765,0.26795,3732.0,3731.9,40.8]
[1736179858157,3.13609369,3732.2,3732.0,0.26794]
[1736179858363,3.13609369,3732.2,3731.9,40.8]
[1736179858658,0.26795,3732.0,3731.9,40.8]
[1736179858857,8.2078,3732.0,3731.2,0.26801]
[1736179859060,8.2078,3732.0,3730.8,6.75276531]
[1736179859061,3.2078,3731.6,3730.8,3.2078]
[1736179859364,0.26805,3730.6,3730.4,0.26806]
[1736179859560,3.2078,3730.8,3730.2,40.8]
[1736179859867,0.26807,3730.4,3730.2,41.06808]
[1736179860067,3.2078,3730.8,3730.2,40.8]
[1736179860357,6.34389369,3731.2,3730.2,40.8]
[1736179860563,0.26806,3730.5,3730.3,0.26807]
[1736179860768,0.26804,3730.7,3730.4,0.26806]
[1736179860961,6.34389369,3731.2,3730.2,44.0078]
[1736179861261,6.34389369,3731.2,3730.9,0.26802]
[1736179861460,0.26803,3730.8,3730.6,0.26804]
[1736179861660,2.3595685,3730.8,3730.2,44.0078]
[1736179861964,3.2078,3730.7,3730.2,40.8]
[1736179862163,0.26807,3730.3,3730.2,40.8]
[1736179862665,0.26805,3730.6,3730.3,0.26807]
[1736179862868,3.2078,3730.7,3730.6,0.26805]
[1736179863163,5.2993385,3730.7,3730.1,2.8804229]
[1736179863371,5.2993385,3730.7,3729.7,3.2078]
[1736179863372,2.0915385,3730.7,3729.7,3.2078]
[1736179863555,0.26805,3730.6,3729.7,3.2078]
[1736179863863,3.2078,3730.6,3730.5,0.26805]
[1736179864066,3.2078,3730.6,3730.5,41.06805]
[1736179864260,2.0915385,3730.7,3730.6,0.26805]